{"text_format":"1","workbook":"xlsx","n_sheets":2,"sheets":["POMŮCKA","výrobní a skladová hala"],"not_rendered":{"charts":0,"images":0,"macros":1,"external_links":0,"defined_names":1,"comments":0,"pivot_tables":0},"unopened":[],"bounds":{"document_bytes":16777216,"sheet_cells":100000,"rows_first":2000,"rows_last":500,"rows_between":2000,"halvings":0,"cell_chars":16384,"cell_head_chars":4096},"cells_cut":0,"cells_raw":0,"read":"whole","date_system":"1900"}

{"sheet":"POMŮCKA","index":0,"n_rows":39,"n_cols":2,"rows_kept":39,"cut":false,"hidden":true,"merged":[]}
["PŘEDBĚŽNÁ CENA \"NA PRÁCI:\""]
[]
["m2","CENA ZA PRÁCI"]
[200,261.99583732323231]
[300,225.83587239057238]
[400,174.81618213383837]
[500,160.57115866666669]
[{"$f":"A7+100","v":600},166.52254518518518]
[{"$f":"A8+100","v":700},157.69373790352503]
[800,139.35793323028074]
[900,128.08023107843138]
[1000,117.73584860695189]
[1100,112.92320059309674]
[1200,105.64613864973262]
[1300,99.77146155080213]
[1400,94.724048944668766]
[1500,139.27534717290553]
[1600,133.73492463653074]
[1700,126.91652437873546]
[1800,123.27487274509804]
[1900,117.71981866458293]
[2000,113.41120835695189]
[2100,108.85492231583544]
[2200,109.14947745260085]
[2300,105.17469044529585]
[2400,102.18700323306595]
[2500,98.808706849197875]
[2600,97.322770722399781]
[2700,94.372569035452571]
[2800,92.450330832423873]
[2900,89.88835981432851]
[3000,112.30670660695188]
[3100,109.25583419582986]
[3200,106.39564346230571]
[3300,108.17463723221519]
[3400,105.51449463825102]
[10000,87.912035079411766]
[20000,87.300107504411756]
[30000,87.096131646078447]

{"sheet":"výrobní a skladová hala","index":1,"n_rows":46,"n_cols":8,"rows_kept":46,"cut":false,"hidden":false,"merged":[[2,2,2,7],[19,6,20,6],[16,4,17,4],[5,2,7,2],[5,4,7,4],[5,6,7,6],[44,2,44,3],[45,2,45,3],[92,1,92,3],[0,2,0,7],[30,2,30,7],[9,6,10,6],[9,4,10,4],[11,2,13,2],[8,2,10,2],[24,5,24,6],[22,5,22,6],[1,2,1,7],[13,4,14,4],[16,1,18,1],[15,2,20,2],[19,4,20,4]]}
[null,null,"SOUPIS PRACÍ"]
[null,"Stavba:","výrobní a skladová hala Meva"]
[null,"Místo:","výrobní zóna věznice Nové Sedlo"]
[]
[null,"Název položky","Umístění a označení","Soupis prací obsahuje:","Jed.pol.","Jed.cena","Množství","Celkem bez DPH:"]
[null,"bourání","venkovní nájezdy do haly","vybourání 2 ks nájezdů do haly - stávající betonové panely, včetně odvozu a recyklace suti","m²",null,90]
[null,"podloží",null,"srovnání a zhutnění podloží na 80MPa, dosypání drceným kamenivem fr. 0-32",null,0,null,{"$f":"F7*G6","v":0}]
[null,"železobeton",null,"provedení a uložení spodní separační PE fólie a pružných dilatací kolem obvodů stěn, vyztužení nájezdů kari sítí 6x6/100x100 na spodní distanci 50mm, dodávku a aplikaci rozptýlené PP výztuže do betonu - 0,9kg/m³, dodávku betonu C30/37 XF4, uložení betonu pod kontrolou spádového laseru, znivelování povrchu plovoucí latí a přehlazení plovoucí latí do desky o tl.200 mm, strojní zahlazení se strukturováním povrchu - česáním, aplikace curingové penetrace - 0,1kg/m², řezání dilatačních spár v rastru 5 x 5m do 1/3 hl. desky, po odeznění smršťovacích procesů zatmelení řezaných dilatačních  spár podlahářským PU tmelem",null,0,null,{"$f":"F8*G6","v":0}]
[null,"bourání","skladová a výrobní hala               ","vybourání stávající průmyslové podlahy v tl. 100-120 uvnitř haly olemované železným profilem, včetně odvozu a recyklace suti","m²",0,98,{"$f":"F9*G9","v":0}]
[null,"průmyslová podlaha",null,"provedení a uložení spodní separační PE fólie a pružných dilatací kolem obvodů stěn a sloupů, dodávku rozptýlené ocelové výztuže LH 50/1 - 20kg/m³, dodávku betonu C25/30, uložení betonu - ukládání betonu bude provedeno laserově naváděným finišerem se zvibrováním vibrační plovoucí latí a přehlazením plovoucí latí do desky tl.200 mm, řezání dilatačních spár v rastru 5 x 5m do 1/3 hl. desky, po odeznění smršťovacích procesů zatmelení řezaných dilatačních spár podlahářským PU tmelem","m²",0,1043,{"$f":"F10*G10","v":0}]
[null,"vsyp",null,"dodávku a aplikaci korundového vsypu s metalickými příměsemi - 3kg/m² se strojním zahlazením povrchu s následnou aplikací uzavírací curingové penetrace - 0,1kg/m²",null,0,null,{"$f":"F11*G10","v":0}]
[null,"energokanál","železo","lemovací profil L-profil 50/50/5 s navařeným plo 20x8 děrovým svárem včetně kotevních plo 50x5 do betonové podlahy, zakrytí slzičkovým plechem tl. 8 mm s navařenými výztuhami z plo 50x8 proti prohnutí a pro pojezd VZV, vnitřní prostor mezi L-profilem a podkladní plochou uzavřen ocelovým plechem, vše v povrchové úpravě žárový pozink","kg",0,950,{"$f":"F12*G12","v":0}]
[null,"demontáž",null,"demontáž s odbroušením stávajících ocelových nájezdů šíře do 2m - cca 50kg/ks","ks",0,4,0]
[null,"úhelník",null,"dodávku a instalaci ukončovacího L-profilu 50/50/5 v povrchové úpravě žárový pozink, do všech vrat a dveří včetně zabednění","bm",0,32,0]
[null,"seříznutí","vrata/dveře","seříznutí stávajících ocelových vrat (7bm) a dřevěných dveří (4bm) ",null,0,11,0]
[null,"broušení","vestavba","provedení celoplošného přebroušení diamantovou bruskou s odsáváním, s ručním dobroušením krajů a rohů - odstranění stávající epoxidové vrstvy, vysátí plochy od všech nečistot","m²",0,160,0]
[null,"sanace ",null,"provedení sanace trhlin a prasklin ve stávající podlaze - trhliny šíře od 1mm se sesponkují podlahářskými kotvami a zapraví se nízkoviskózní pryskyřicí","bm",0,136,0]
[null,null,null,"zbroušení - srovnání podlahy v přechodu mezi místnostmi ",null,0,1,0]
[null,null,null,"provedení sanace výtluků větších 5mm plastbetonem ","kpl",0,1,0]
[null,"přebroušení",null,"finální přebroušení a vyrovnání povrchu po provedení oprav","m²",0,160,0]
[null,"epoxid",null,"dodávku a aplikaci epoxidové stěrky v tl. 1,5mm kopírující stávající vyspravený betonový podklad, stěrka odolná proti základním chemickým látkám a ropným produktům, odstín podle RAL 7035 - světle šedá",null,0,null,{"$f":"F21*G20","v":0}]
[]
[null,null,null,null,null,"Cena celkem bez DPH",null,{"$f":"SUM(H6:H21)","v":0}]
[]
[null,null,null,null,null,"Cena celkem vč. DPH",null,{"$f":"H23*1.21","v":0}]
[]
[]
[]
[]
[null,"Podmínky:"]
[null,null,"1. Veškeré položky obsahují dodávku materiálu, jeho montáž, instalaci, aplikaci apod."]
[null,null,"2. Podlaha bude provedena podle ČSN 74 4505 Podlahy, společná ustanovení."]
[null,null,"3. K podlaze zhotovitel dodá statický posudek na únosnost průmyslové podlahy - zatížení na m², bodově od patky regálu 120x120mm a pro pojezd VZV."]
[null,null,"4. Splatnost faktur 30 dnů - jako podklad k fakturaci slouží předávací protokol potvrzený zástupcem objednatele."]
[null,null,"5. Cenová nabídka musí být kompletní a cena konečná - nejvýše přípustná, včetně všech nákládů na přesun materiálu a hmot, skládkovné apod."]
[null,null,"6. Nabídková cena musí být platná po dobu 6 měsíců od data zpracování nabídky."]
[null,null,"7. K ceně bude připočtena DPH podle platných předpisů."]
[null,null,"8. Záruka za dílo musí být 60 měsíců od předání díla."]
[null,null,"9. Na stavbě bude stavebníkem zajištěna dodávka el. energie, přípojka vody a vyčleněn prostor u haly pro nutný výplach domíchávačů betonu. "]
[]
[]
[]
[]
[null,"Vypracoval:","  Ing. Pavel Šedý"]
[null,"Funkce:","  vedoucí stavebního referátu"]
[null,"E - mail:","  psedy@vez.nse.justice.cz"]